lending/lending_fUSD_20241014
["ID","MTS","AMOUNT","RATE_DAILY","PERIOD"]
[340258891,1728936820610,-235.0,0.000425,120]
[340258892,1728936820634,-2000.0,0.0004274,30]
[340258893,1728936820658,-2000.0,0.0004274,30]
[340258894,1728936820681,-1046.23171892,0.000428,60]
[340258895,1728936820709,-494.36026207,0.00042898,120]
[340258896,1728936820733,-327.4482662,0.000429,30]
[340258897,1728936820756,-160.53896557,0.000429,30]
[340258898,1728936820780,-581.33128928,0.000429,60]
[340258899,1728936820805,-1011.94,0.0004295,65]
[340258900,1728936820832,-50000.0,0.00043,43]
[340258901,1728936820858,-50000.0,0.00043,33]
[340258902,1728936820881,-626.96576164,0.00043,30]
[340258903,1728936820906,-264.73242581,0.00043,120]
[340258904,1728936820929,-300.0915605,0.00043,120]
[340258905,1728936820955,-150.0,0.00043,120]
[340258906,1728936820979,-900.0,0.00043,44]
[340258907,1728936821003,-508.21419135,0.00043,120]
[340258908,1728936821027,-533.09386602,0.00043,120]
[340258909,1728936821050,-2000.0,0.00043014,30]
[340258910,1728936821075,-2000.0,0.00043014,30]
[340258911,1728936821100,-150.0,0.00043079,120]
[340258912,1728936821124,-166.03801,0.00043088,30]
[340258913,1728936821149,-259.58872,0.000432,120]
[340258914,1728936821172,-166.03801,0.00043288,30]
[340258915,1728936821195,-2000.0,0.00043288,30]
[340258916,1728936821219,-2000.0,0.00043288,30]
[340258917,1728936821245,-166.03801,0.00043488,30]
[340258918,1728936821269,-2000.0,0.00043562,30]
[340258919,1728936821293,-2000.0,0.00043562,30]
[340258920,1728936821319,-152.0,0.00043618,12]
[340258921,1728936821344,-166.03801,0.00043688,30]
[340258922,1728936821368,-158.60174972,0.000437,60]
[340258923,1728936821391,-685.12681205,0.000437,120]
[340258924,1728936821415,-3000.0,0.00043835,14]
[340258925,1728936821438,-888.0,0.00043835,120]
[340258926,1728936821461,-888.0,0.00043835,120]
[340258927,1728936821485,-888.0,0.00043835,120]
[340258928,1728936821509,-888.0,0.00043835,120]
[340258929,1728936821532,-888.0,0.00043835,120]
[340258930,1728936821556,-888.0,0.00043835,120]
[340258931,1728936821579,-888.0,0.00043835,120]
[340258932,1728936821603,-390.06988463,0.00043835,120]
[340258933,1728936821627,-2000.0,0.00043836,30]
[340258934,1728936821652,-2000.0,0.00043836,30]
[340258935,1728936821680,-50000.0,0.00044,44]
[340258936,1728936821707,-50000.0,0.00044,34]
[340258937,1728936821732,-500.0,0.00044,120]
[340258938,1728936821758,-242.85565393,0.00044,30]
[340258939,1728936821782,-1373.0,0.00044,60]
[340258940,1728936821808,-150.0,0.00044,120]
[340258941,1728936821832,-900.0,0.00044,45]
[340258942,1728936821855,-501.942697,0.00044,57]
[340258943,1728936821878,-166.03801,0.00044088,30]
[340258944,1728936821901,-211.24791981,0.000442,120]
[340258945,1728936821924,-166.03801,0.00044288,30]
[340258946,1728936821947,-1011.94,0.00044375,76]
[340258947,1728936821972,-153.87,0.00044384,120]
[340258948,1728936821996,-459.69529936,0.000444,30]
[340258949,1728936822019,-166.03801,0.00044488,30]
[340258950,1728936822044,-150.0,0.00044567,31]
[340258951,1728936822069,-150.0,0.00044571,120]
[340258952,1728936822092,-498.42344601,0.000446,120]
[340258953,1728936822116,-166.03801,0.00044688,30]
[340258954,1728936822140,-327.92136722,0.000447,60]
[340258955,1728936822163,-816.19161,0.000448,30]
[340258956,1728936822186,-259.58872,0.000448,120]
[340258957,1728936822209,-211.29760612,0.0004489,120]
[340258958,1728936822234,-209.0,0.0004495,30]
[340258959,1728936822261,-271.97927112,0.00044973,120]
[340258960,1728936822288,-50000.0,0.00045,45]
[340258961,1728936822316,-50000.0,0.00045,55]
[340258962,1728936822341,-900.0,0.00045,46]
[340258963,1728936822364,-782.5037948,0.00045,120]
[340258964,1728936822387,-150.0,0.00045,30]
[340258965,1728936822411,-157.3,0.00045,120]
[340258966,1728936822523,-241.0,0.00045,120]
[340258967,1728936822571,-150.0,0.00045,120]
[340258968,1728936822595,-25000.0,0.00045,120]
[340258969,1728936822620,-367.24,0.00045,7]
[340258970,1728936822644,-688.45,0.00045,120]
[340258971,1728936822667,-2985.64,0.00045,120]
[340258972,1728936822691,-207.0,0.0004502,30]
[340258973,1728936822714,-152.0,0.00045037,13]
[340258974,1728936822738,-880.77726106,0.0004526,120]
[340258975,1728936822762,-1000.0,0.0004545,7]
[340258976,1728936822786,-2000.0,0.00045479,60]
[340258977,1728936822809,-2000.0,0.00045479,30]
[340258978,1728936822833,-2000.0,0.00045678,7]
[340258979,1728936822856,-2000.0,0.00045679,7]
[340258980,1728936822879,-2000.0,0.00045753,60]
[340258981,1728936822902,-2000.0,0.00045753,30]
[340258982,1728936822925,-1011.94,0.000458,87]
[340258983,1728936822949,-486.16240034,0.000459,120]
[340258984,1728936822974,-50000.0,0.00046,46]
[340258985,1728936822999,-50000.0,0.00046,56]
[340258986,1728936823022,-500.0,0.00046,120]
[340258987,1728936823045,-900.0,0.00046,47]
[340258988,1728936823069,-271.04349202,0.00046,120]
[340258989,1728936823092,-381.19777226,0.00046,120]
[340258990,1728936823115,-1000.0,0.00046,30]
[340258991,1728936823137,-470.97506421,0.00046,30]
[340258992,1728936823160,-300.0,0.00046,120]
[340258993,1728936823182,-150.0,0.00046,120]
[340258994,1728936823204,-635.26773919,0.00046,120]
[340258995,1728936823227,-666.36733253,0.00046,120]
[340258996,1728936823254,-2000.0,0.00046027,60]
[340258997,1728936823278,-2000.0,0.00046027,30]
[340258998,1728936823300,-500.0,0.00046301,120]
[340258999,1728936823325,-2000.0,0.00046301,60]
[340259000,1728936823347,-2000.0,0.00046301,30]
[340259001,1728936823371,-259.58872,0.000464,120]
[340259002,1728936823394,-152.0,0.00046457,14]
[340259003,1728936823416,-321.94177987,0.000465,120]
[340259004,1728936823438,-2000.0,0.00046575,60]
[340259005,1728936823460,-2000.0,0.00046575,30]
[340259006,1728936823482,-3375.0,0.00046575,14]
[340259007,1728936823504,-522.67967772,0.00046575,30]
[340259008,1728936823526,-26122.1028847,0.00046576,7]
[340259009,1728936823549,-500.0,0.00046849,120]
[340259010,1728936823574,-150.0,0.00046919,120]
[340259011,1728936823599,-209.0,0.0004692,30]
[340259012,1728936823623,-207.0,0.0004698,30]
[340259013,1728936823646,-412.0,0.00046986,90]
[340259014,1728936823673,-50000.0,0.00047,47]
[340259015,1728936823698,-50000.0,0.00047,57]
[340259016,1728936823722,-150.0,0.00047,120]
[340259017,1728936823746,-1011.94,0.00047225,98]
[340259018,1728936823769,-500.0,0.00047397,120]
[340259019,1728936823794,-500.0,0.00047397,120]
[340259020,1728936823818,-182.76237908,0.0004748,115]
[340259021,1728936823850,-152.0,0.00047876,15]
[340259022,1728936823881,-500.0,0.00047945,120]
[340259023,1728936823909,-500.0,0.00047945,120]
[340259024,1728936823941,-50000.0,0.00048,48]
[340259025,1728936823973,-50000.0,0.00048,58]
[340259026,1728936824002,-500.0,0.00048,120]
[340259027,1728936824031,-259.58872,0.00048,120]
[340259028,1728936824060,-775.50261068,0.00048,120]
[340259029,1728936824088,-163.08265616,0.00048,120]
[340259030,1728936824115,-894.11466581,0.00048,120]
[340259031,1728936824144,-150.0,0.00048,90]
[340259032,1728936824172,-150.0,0.00048,120]
[340259033,1728936824198,-635.26773918,0.00048,120]
[340259034,1728936824224,-666.36733253,0.00048,120]
[340259035,1728936824254,-500.0,0.00048493,120]
[340259036,1728936824282,-500.0,0.00048493,120]
[340259037,1728936824311,-500.0,0.00048493,120]
[340259038,1728936824341,-800.0,0.00048493,120]
[340259039,1728936824368,-1011.94,0.0004865,109]
[340259040,1728936824393,-500.0,0.00048767,120]
[340259041,1728936824421,-800.0,0.00048767,120]
[340259042,1728936824450,-56534.04,0.0004877,120]
[340259043,1728936824475,-10084.0,0.0004879,30]
[340259044,1728936824504,-1039.53268346,0.000488,120]
[340259045,1728936824532,-37393.33,0.0004888,120]
[340259046,1728936824559,-209.0,0.0004889,30]
[340259047,1728936824585,-244.78698499,0.000489,120]
[340259048,1728936824613,-207.0,0.0004893,30]
[340259049,1728936824640,-6414.3302755,0.0004899,14]
[340259050,1728936824670,-50000.0,0.00049,49]
[340259051,1728936824702,-12269.94063457,0.00049,59]
[340259052,1728936849330,-445.994638,0.00022137,7]
[340259053,1728936849357,-445.994638,0.00022137,7]
[340259054,1728936849384,-166.38,0.000248,14]
[340259055,1728936849415,-1747.53,0.00027397,10]
[340259056,1728936849438,-166.38,0.000287,14]
[340259057,1728936849477,-151.0,0.00032877,7]
[340259058,1728936849502,-151.0,0.00032877,7]
[340259059,1728936849525,-151.0,0.00032877,7]
[340259060,1728936849548,-151.0,0.00032877,7]
[340259061,1728936849698,-151.0,0.00032877,7]
[340259062,1728936849725,-151.0,0.00032877,7]
[340259063,1728936849750,-151.0,0.00032877,7]
[340259064,1728936849777,-151.0,0.00032877,7]
[340259065,1728936849802,-151.0,0.00032877,7]
[340259066,1728936849826,-151.0,0.00032877,7]
[340259067,1728936849851,-151.0,0.00032877,7]
[340259068,1728936849876,-151.0,0.00032877,7]
[340259069,1728936849900,-161.702302,0.00032877,7]
[340259070,1728936849924,-166.38,0.000334,30]
[340259071,1728936849948,-480.637005,0.0003728,20]
[340259072,1728936849972,-166.38,0.000389,30]
[340259073,1728936849998,-749.83212667,0.00046576,7]
[340259074,1728936850027,-1090.45535345,0.0004802,10]
[340259075,1728936850054,-37730.05936543,0.00049,59]
[340259076,1728936850078,-735.3935521,0.00049,30]
[340259077,1728936850110,-300.0,0.00049,120]
[340259078,1728936850134,-1034.0,0.00049,90]
[340259079,1728936850158,-150.0,0.00049,120]
[340259080,1728936850180,-5000.0,0.00049,7]
[340259081,1728936850204,-50000.0,0.00049,120]
[340259082,1728936850228,-450.0,0.00049,59]
[340259083,1728936850252,-1000.0,0.00049,59]
[340259084,1728936850276,-411.36530359,0.00049041,120]
[340259085,1728936850302,-500.0,0.00049041,120]
[340259086,1728936850325,-500.0,0.00049041,120]
[340259087,1728936850351,-800.0,0.00049041,120]
[340259088,1728936850375,-166.38,0.000491,60]
[340259089,1728936850400,-184.299,0.0004925,120]
[340259090,1728936850423,-184.299,0.0004925,120]
[340259091,1728936850447,-184.299,0.0004925,120]
[340259092,1728936850471,-500.0,0.00049315,120]
[340259093,1728936850494,-800.0,0.00049315,120]
[340259094,1728936850518,-3750.0,0.00049315,14]
[340259095,1728936850543,-801.0,0.00049452,30]
[340259096,1728936850567,-50000.0,0.0004949,120]
[340259097,1728936850591,-500.0,0.00049589,120]
[340259098,1728936850615,-500.0,0.00049589,120]
[340259099,1728936850639,-800.0,0.00049589,120]
[340259100,1728936850662,-259.58872,0.000496,120]
[340259101,1728936850686,-500.0,0.00049863,120]
[340259102,1728936850709,-412.0,0.00049886,90]
[340259103,1728936850734,-411.20885119,0.000499,120]
[340259104,1728936850759,-15000.0,0.0004998,30]
[340259105,1728936850782,-412.0,0.00049986,120]
[340259106,1728936850806,-1000.0,0.00049999,120]
[340259107,1728936850829,-236.34,0.00049999,120]
[340259108,1728936850858,-50000.0,0.0005,50]
[340259109,1728936850884,-50000.0,0.0005,60]
[340259110,1728936850908,-500.0,0.0005,120]
[340259111,1728936850931,-175.07337436,0.0005,120]
[340259112,1728936850955,-777.68213609,0.0005,120]
[340259113,1728936850979,-415.0,0.0005,120]
[340259114,1728936851002,-479.05719347,0.0005,120]
[340259115,1728936851026,-1080.0730743,0.0005,120]
[340259116,1728936851050,-150.0,0.0005,30]
[340259117,1728936851073,-1040.0,0.0005,120]
[340259118,1728936851097,-948.0,0.0005,120]
[340259119,1728936851120,-2113.81242101,0.0005,120]
[340259120,1728936851143,-50000.0,0.0005,120]
[340259121,1728936851166,-2760.93206616,0.0005,120]
[340259122,1728936851189,-218.42741724,0.0005,120]
[340259123,1728936851212,-150.0,0.0005,120]
[340259124,1728936851234,-1058.836411,0.0005,30]
[340259125,1728936851257,-521271.0,0.0005,120]
[340259126,1728936851280,-1000000.0,0.0005,120]
[340259127,1728936851305,-1000.0,0.0005,120]
[340259128,1728936851327,-500.0,0.0005,13]
[340259129,1728936851352,-50000.0,0.0005,120]
[340259130,1728936851376,-29289.74389628,0.0005,120]
[340259131,1728936851400,-53260.46315466,0.0005,120]
[340259132,1728936858522,-1456.27,0.00027397,10]
[340259133,1728936858571,-1012.73342645,0.00049,30]
[340259134,1728936858598,-286.17813824,0.00049999,120]
[340259135,1728936858622,-975.14849839,0.00049999,120]
[340259136,1728936858648,-946739.53684534,0.0005,120]
[340259137,1728936858673,-180.0,0.0005,120]
[340259138,1728936858699,-1158.6138018,0.0005,120]
[340259139,1728936858723,-1586.0,0.0005,14]
[340259140,1728936858747,-262.038695,0.0005,30]
[340259141,1728936858905,-182.01,0.0005,120]
[340259142,1728936858931,-450.0,0.0005,50]
[340259143,1728936858956,-1011.94,0.00050075,120]
[340259144,1728936858981,-500.0,0.00050137,120]
[340259145,1728936859005,-800.0,0.00050137,120]
[340259146,1728936859029,-500.0,0.00050411,120]
[340259147,1728936859053,-500.0,0.00050685,120]
[340259148,1728936859079,-800.0,0.00050685,120]
[340259149,1728936859103,-151.0,0.00050699,9]
[340259150,1728936859130,-209.0,0.0005086,30]
[340259151,1728936859154,-204.0,0.0005089,30]
[340259152,1728936859178,-207.0,0.0005089,30]
[340259153,1728936859203,-500.0,0.00050959,120]
[340259154,1728936859227,-1000.0,0.00050999,120]
[340259155,1728936859254,-50000.0,0.00051,51]
[340259156,1728936859280,-50000.0,0.00051,61]
[340259157,1728936859307,-150.0,0.00051,120]
[340259158,1728936859331,-939178.53059478,0.00051,120]
[340259159,1728936990123,306.73,9.838e-05,2]
[340259160,1728937265119,800.0,0.00026986,120]
[340259161,1728937307629,153.0,8.219e-05,2]
[340259162,1728937310384,641.07,9.478e-05,2]
[340259163,1728937360222,800.0,9.838e-05,2]
[340259164,1728937383809,800.0,0.00026986,120]
[340259165,1728937399288,500.0,0.0002594,120]
[340259166,1728937404655,200.0,0.00027,120]
[340259167,1728937485745,51819.610613,0.0001,2]
[340259168,1728937502559,800.0,0.00026986,120]
[340259169,1728937593782,252.7,9.838e-05,2]
[340259170,1728937616330,550.0,0.0001,2]
[340259171,1728937624007,800.0,0.00026986,120]
[340259172,1728937658820,150.0,0.0001023,2]
[340259173,1728937700693,424.51222166,0.00027,60]
[340259174,1728937705742,500.0,9.838e-05,2]
[340259175,1728937724587,2133.64894812,0.000145,120]
[340259186,1728937780635,150.0,0.00010199,2]
[340259191,1728937813841,500.0,0.0001,2]
[340259192,1728937814174,500.0,0.0001,2]
[340259193,1728937814501,500.0,0.0001,2]
[340259194,1728937814838,500.0,0.0001,2]
[340259195,1728937815154,868.0,0.0001,2]
[340259210,1728937832352,-250.0,0.00010554,2]
[340259211,1728937832362,-200.0,0.00010555,2]
[340259212,1728937832372,-153.36,0.00010589,2]
[340259213,1728937832382,-215.338,0.00010589,2]
[340259214,1728937832469,-34.662,0.00010589,2]
[340259215,1728937832479,-200.0,0.00010622,2]
[340259216,1728937832489,-1744.1670792,0.000108,2]
[340259222,1728937838388,-1071.42,0.000108,2]
[340259223,1728937838499,-12635.0,0.000108,2]
[340259224,1728937838511,-663.20124754,0.000108,2]
[340259383,1728937840445,-27514.94087326,0.000108,2]
[340259384,1728937840454,-55889.82386754,0.0001088,2]
[340259386,1728937840464,-862.27076426,0.00010899,2]
[340259388,1728937840474,-3318.2356,0.000109,2]
[340259390,1728937840484,-157.36847043,0.000109,2]
[340259407,1728937840628,-500.0,0.000109,2]
[340259409,1728937840642,-1000.0,0.000109,2]
[340259411,1728937840652,-1210.607,0.000109,2]
[340259413,1728937840661,-3252.16735489,0.000109,2]
[340259415,1728937840673,-4247.83264511,0.000109,2]
[340259417,1728937840682,-153.21512411,0.000109,2]
[340259419,1728937840691,-6738.1986,0.000109,2]
[340259421,1728937840699,-23096.60230882,0.000109,2]
[340259423,1728937840709,-500.0,0.00010911,2]
[340259425,1728937840718,-500.0,0.00010912,2]
[340259427,1728937840729,-500.0,0.00010912,2]
[340259429,1728937840739,-500.0,0.00010912,2]
[340259430,1728937840748,-167.74,0.00010959,2]
[340259432,1728937840757,-179.58706009,0.00010973,2]
[340259434,1728937840766,-2714.66832771,0.0001099,2]
[340259436,1728937840778,-323.888006,0.0001099,2]
[340259440,1728937840801,-28855.01838129,0.0001099,2]
[340259442,1728937840812,-166.80648,0.00010997,2]
[340259444,1728937840822,-580.0,0.00011,2]
[340259446,1728937840831,-219.6,0.00011,2]
[340259448,1728937840840,-734643.66280315,0.00011,2]
[340259694,1728937843384,-109490.67085967,0.00011,2]
[340259696,1728937843395,-66083.7591422,0.00011,2]
[340259698,1728937843406,-131425.57,0.00011,2]
[340259987,1728937846327,-523.0,0.00011,2]
[340259990,1728937846337,-717.11888,0.00011,2]
[340261523,1728937872740,834.24,8.219e-05,2]
[340261524,1728937907159,2043.0,0.00027,60]
[340261525,1728937998814,500.0,0.00025667,120]
[340261526,1728938004753,202.181113,0.00026757,120]
[340261527,1728938095349,335.85,9.838e-05,2]
[340261528,1728938155145,200.0,9.838e-05,2]
[340261529,1728938206007,150.0,0.00010112,2]
[340261530,1728938207777,250.0,9.838e-05,2]
[340261531,1728938327783,150.0,0.00010114,2]
[340261532,1728938449435,150.0,0.00010116,2]
[340261533,1728938552848,792.52,9.658e-05,2]
[340261534,1728938571559,150.0,0.00010118,2]
[340261535,1728938597913,512.461224,0.00025343,120]
[340261536,1728938598178,500.0,0.00026857,120]
[340261565,1728939031595,-150.0,0.00010417,2]
[340261566,1728939031604,-306.272,0.0001078,2]
[340261567,1728939031613,-150.0,0.00010877,2]
[340261568,1728939031623,-918.7252,0.0001089,2]
[340261569,1728939031632,-150.0,0.00010899,2]
[340261570,1728939031641,-101.09570453,0.000109,2]
[340261571,1728939031652,-235.92339547,0.000109,2]
[340261572,1728939031660,-101.09574109,0.000109,2]
[340261575,1728939037502,-1745.15185891,0.000109,2]
[340261576,1728939037511,-2488.22137063,0.000109,2]
[340261577,1728939037523,-3775.86102937,0.000109,2]
[340261578,1728939037532,-590.2073,0.000109,2]
[340261579,1728939037541,-7500.0,0.000109,2]
[340261580,1728939037550,-168.92543525,0.000109,2]
[340261581,1728939037559,-1063.96962798,0.000109,2]
[340261582,1728939037568,-156.84,0.00010959,2]
[340261583,1728939037578,-178.97,0.00010959,2]
[340261584,1728939037587,-956.65353789,0.00010997,2]
[340261585,1728939037596,-502.53837156,0.00010999,2]
[340261586,1728939037605,-82.50478571,0.00011,2]
[340261587,1728939037663,-2629.84387576,0.00011,2]
[340261588,1728939037674,-6608.0,0.00011,2]
[340261595,1728939039695,-1705.25772916,0.00011,2]
[340261606,1728939042563,-12592.55099999,0.00011,2]
[340261607,1728939042672,-567.97047889,0.00011,2]
[340261611,1728939045482,-33022.50000001,0.00011,2]
[340261612,1728939045747,-1897.456752,0.00011,2]
[340261613,1728939045759,-6864.65227975,0.00011,2]
[340261688,1728939057142,779.83,9.622e-05,2]
[340261689,1728939091833,-300.0,0.00010999,2]
[340261690,1728939091853,-150.0,0.00010999,2]
[340261691,1728939118380,150.0,0.00010631,2]
[340261692,1728939124621,800.0,0.00026986,120]
[340261693,1728939141606,7500.0,0.000109,2]
[340261694,1728939146872,637.5031,0.000109,2]
[340261695,1728939154000,2500.0,0.000109,2]
[340261696,1728939197099,500.0,0.00026201,120]
[340261697,1728939233997,7500.0,0.000109,2]
[340261698,1728939240146,150.0,0.00010634,2]
[340261699,1728939254657,182.09635607,0.000109,2]
[340261700,1728939276802,426.8603,0.000109,2]
[340261701,1728939351278,163.91,0.00010959,2]
[340261702,1728939353959,339.63024393,0.000109,2]
[340261703,1728939365522,800.0,0.00026986,120]
[340261704,1728939427521,550.0,0.0001,2]
[340261706,1728939674626,740.83,9.561e-05,2]
[340261761,1728940223752,703.78,9.513e-05,2]
[340261762,1728940231677,-812.39353337,0.000109,2]
[340261763,1728940231735,-145.17913174,0.000109,2]
[340261764,1728940231745,-182.09635607,0.000109,2]
[340261765,1728940231755,-7500.0,0.000109,2]
[340261766,1728940231764,-167.74,0.00010959,2]
[340261767,1728940231774,-3581.23699195,0.00011,2]
[340261768,1728940231791,-734.71156436,0.00011,2]
[340261769,1728940231802,-277.5783648,0.00011,2]
[340261770,1728940231813,-1579.69576953,0.00011,2]
[340261771,1728940231956,-357.55576048,0.00011,2]
[340261777,1728940237800,-762.66851163,0.00011,2]
[340261778,1728940238071,-299.299,0.00011,2]
[340261791,1728940239857,-803.18423778,0.00011,2]
[340261792,1728940239868,-901.97564511,0.00011,2]
[340261793,1728940239879,-1305.1161,0.00011,2]
[340261794,1728940239915,-618.77241179,0.00011,2]
[340261795,1728940240028,-180797.84417899,0.00011,2]
[340261796,1728940240037,-205.0,0.00011,2]
[340261797,1728940240047,-338795.47571864,0.00011,2]
[340261798,1728940240056,-235330.08102137,0.00011,2]
[340261838,1728940243098,-3617.24616522,0.00011,2]
[340261839,1728940243110,-530.49825057,0.00011,2]
[340261844,1728940245640,-5999.99999953,0.00011,2]
[340261845,1728940245697,-393.6201291,0.00011,2]
[340261846,1728940245754,-2194.15517873,0.00011,2]
[340261847,1728940245767,-77709.40000004,0.00011,2]
[340261848,1728940245811,-5062.62290345,0.00011,2]
[340261849,1728940245924,-13217.76576001,0.00011,2]
[340262040,1728940249272,150.0,0.00027,60]
[340262041,1728940250078,150.0,0.00027,60]
[340262042,1728940250619,150.0,0.00027,60]
[340262043,1728940251313,150.0,0.00027,60]
[340262044,1728940251481,150.0,0.00027,60]
[340262045,1728940252109,150.0,0.00027,60]
[340262046,1728940252403,150.0,0.00027,60]
[340262047,1728940252739,150.0,0.00027,60]
[340262048,1728940253093,150.0,0.00027,60]
[340262049,1728940253738,150.0,0.00027,60]
[340262050,1728940254110,150.0,0.00027,60]
[340262051,1728940254533,150.0,0.00027,60]
[340262052,1728940259141,150.0,0.00027,60]
[340262053,1728940259671,150.0,0.00027,60]
[340262054,1728940260312,150.0,0.00027,60]
[340262055,1728940260432,150.0,0.00027,60]
[340262056,1728940260847,150.0,0.00027,60]
[340262057,1728940277585,150.0,0.00027,60]
[340262058,1728940278306,150.0,0.00027,60]
[340262059,1728940278979,150.0,0.00027,60]
[340262060,1728940279687,150.0,0.00027,60]
[340262061,1728940309056,177.86434645,0.00027,60]
[340262062,1728940727873,714.96,9.439e-05,2]
[340262063,1728941044578,800.0,0.00026986,120]
[340262064,1728941053235,669.0,0.00027,60]
[340262065,1728941237377,550.0,0.0001,2]
[340262069,1728941347991,701.38,9.236e-05,2]
[340262074,1728941431818,-3015.808903,0.00010825,2]
[340262075,1728941431827,-13184.191097,0.0001088,2]
[340262076,1728941431839,-7349.96119563,0.0001088,2]
[340262078,1728941431850,-449.10586303,0.0001088,2]
[340262080,1728941431877,-300.0,0.0001088,2]
[340262082,1728941431939,-1809.61020753,0.0001088,2]
[340262083,1728941431948,-21.81096525,0.000109,2]
[340262084,1728941432001,-3741.43535012,0.000109,2]
[340262090,1728941438024,-563.86368463,0.000109,2]
[340262091,1728941438033,-178.25261451,0.00010959,2]
[340262092,1728941438044,-35.29738549,0.00010959,2]
[340262093,1728941438053,-241.75532261,0.00010959,2]
[340262224,1728941440104,-12.85467739,0.00010959,2]
[340262225,1728941440113,-212.17,0.00010959,2]
[340262226,1728941440122,-176.81,0.00010959,2]
[340262227,1728941440131,-884.08,0.00010959,2]
[340262228,1728941440140,-777.71139063,0.00010959,2]
[340262233,1728941442884,-2968.18223378,0.00010959,2]
[340262234,1728941442893,-150.0,0.00010998,2]
[340262235,1728941442903,-286.17813824,0.00010999,2]
[340262236,1728941442912,-1950.29699677,0.00010999,2]
[340262237,1728941442921,-2549.41392965,0.00011,2]
[340262238,1728941442932,-720.70825157,0.00011,2]
[340262260,1728941445864,-560.82462906,0.00011,2]
[340262262,1728941445875,-593.908839,0.00011,2]
[340262329,1728941446745,-28003.63091968,0.00011,2]
[340262330,1728941446756,-2116.95788424,0.00011,2]
[340262331,1728941515878,760.0,0.00011,4]
[340262332,1728941918464,710.03,9.158e-05,2]
[340262333,1728942179946,200.0,0.00010164,2]
[340262334,1728942181179,158.61,0.00010164,2]
[340262335,1728942268032,450.0,0.00010194,2]
[340262336,1728942388866,684.99,0.00010196,2]
[340262337,1728942399644,150.0,9.896e-05,2]
[340262338,1728942404459,418.92,0.00010196,2]
[340262339,1728942422237,283.25,0.00010234,2]
[340262340,1728942521287,150.0,9.858e-05,2]
[340262341,1728942545836,182.41,0.00010227,2]
[340262342,1728942585877,150.0,0.00010234,2]
[340262360,1728942632096,-1684.98777253,0.00010246,2]
[340262363,1728942632108,-15021.70197133,0.00010246,2]
[340262365,1728942632120,-7193.31025614,0.00010246,2]
[340262367,1728942632130,-3827.77,0.00010286,2]
[340262369,1728942632140,-795.63,0.00010293,2]
[340262371,1728942632149,-372.1,0.00010429,2]
[340262373,1728942632158,-9181.0,0.00010502,2]
[340262382,1728942632299,-21364.53386001,0.00010502,2]
[340262383,1728942632309,-150.0,0.00010877,2]
[340262384,1728942632318,-150.0,0.00010898,2]
[340262385,1728942632328,-30982.6448,0.000109,2]
[340262386,1728942632338,-488.9524,0.000109,2]
[340262387,1728942632347,-8118.2548,0.000109,2]